[Event "HUN-ch U8-U18 2019"]
[Site "Balatonlelle"]
[Date "2019.06.26"]
[Round "7.19"]
[White "Kresz, Adam"]
[Black "Hatala, Csaba Laszlo"]
[Result "1/2-1/2"]
[ECO "B35"]
[WhiteElo "1949"]
[BlackElo "1958"]
[Annotator "NA RC"]
[PlyCount "101"]
[EventDate "2019.06.21"]
[EventType "swiss"]
[EventCountry "HUN"]
[SourceTitle "playchess.com"]
[Source "ChessBase"]
[SourceQuality "1"]
[TimeControl "40/5400+30:1800+30"]

1. e4 {[%emt 0:00:03]} c5 {[%emt 0:00:07]} 2. Nf3 {[%emt 0:00:06]} Nc6 {[%emt 0:00:09]} 3. d4 {[%emt 0:00:07]} cxd4 {[%emt 0:00:07]} 4. Nxd4 {[%emt 0:00:06]} g6 {[%emt 0:00:12]} 5. Nc3 {[%emt 0:00:12]} Bg7 {[%emt 0:00:08]} 6. Be3 {[%emt 0:00:05]} Nf6 {[%emt 0:00:13]} 7. Bc4 {[%emt 0:00:11]} Qa5 {[%emt 0:00:28]} 8. f3 {[%emt 0:00:10]} O-O {[%emt 0:10:27]} 9. Bb3 {[%emt 0:02:32]} d6 {[%emt 0:07:11]} 10. Qd2 {[%emt 0:00:23]} Nxd4 {[%emt 0:09:51]} 11. Bxd4 {[%emt 0:00:11]} b5 {[%emt 0:02:00]} 12. Nd5 {[%emt 0:25:39]} Qxd2+ {[%emt 0:01:27]} 13. Kxd2 {[%emt 0:00:58]} Nxe4+ {[%emt 0:02:30]} 14. fxe4 {[%emt 0:02:24]} Bxd4 {[%emt 0:00:06]} 15. Nxe7+ {[%emt 0:00:07]} Kg7 {[%emt 0:00:22]} 16. Bd5 {[%emt 0:00:07]} Bd7 {[%emt 0:06:40]} 17. Bxa8 {[%emt 0:00:15]} Rxa8 {[%emt 0:00:07]} 18. c3 {[%emt 0:10:10]} Be5 {[%emt 0:00:28]} 19. Rae1 {[%emt 0:07:35]} a5 {[%emt 0:01:46]} 20. Kc2 {[%emt 0:12:49]} Rb8 {[%emt 0:01:31]} 21. Nd5 {[%emt 0:03:56]} Rb7 {[%emt 0:04:34]} 22. Ne3 {[%emt 0:11:48]} Be6 {[%emt 0:01:04]} 23. g3 {[%emt 0:03:24]} Bd7 {[%emt 0:14:38]} 24. Rhf1 {[%emt 0:08:46]} Be6 {[%emt 0:01:49]} 25. Nd5 {[%emt 0:02:03]} Ra7 {[%emt 0:15:45]} 26. a3 {[%emt 0:02:45]} Rb7 {[%emt 0:00:23]} 27. Rf3 {[%emt 0:01:02]} f5 {[%emt 0:08:54]} 28. Nf4 {[%emt 0:01:42]} Bxf4 {[%emt 0:00:29]} 29. Rxf4 {[%emt 0:00:39]} fxe4 {[%emt 0:00:20]} 30. Kd2 {[%emt 0:00:45]} d5 {[%emt 0:00:25]} 31. h4 {[%emt 0:01:41]} h5 {[%emt 0:00:16]} 32. Ke3 {[%emt 0:00:20]} b4 {[%emt 0:01:16]} 33. axb4 {[%emt 0:00:07]} axb4 {[%emt 0:00:05]} 34. c4 {[%emt 0:00:10]} dxc4 {[%emt 0:01:31]} 35. Rxe4 {[%emt 0:00:16]} Bf7 {[%emt 0:00:25]} 36. Kd2 {[%emt 0:01:22]} c3+ {[%emt 0:07:22]} 37. Kc2 {[%emt 0:01:28]} cxb2 {[%emt 0:00:53]} 38. Kxb2 {[%emt 0:00:08]} b3 {[%emt 0:00:40]} 39. Re7 {[%emt 0:00:35]} Rxe7 40. Rxe7 {[%emt 0:00:00]} Kf6 {[%emt 0:00:00]} 41. Rb7 {[%emt 0:00:20]} Be6 {[%emt 0:01:53]} 42. Rb5 {[%emt 0:04:29]} Bc4 {[%emt 0:03:04]} 43. Rc5 {[%emt 0:00:41]} Be6 {[%emt 0:00:12]} 44. Kc3 {[%emt 0:00:09]} Ke7 {[%emt 0:01:57]} 45. Rb5 {[%emt 0:00:26]} Kf7 {[%emt 0:03:47]} 46. Kd4 {[%emt 0:00:32]} Kf6 {[%emt 0:01:45]} 47. Ke4 {[%emt 0:00:49]} Bf5+ {[%emt 0:00:14]} 48. Kf4 {[%emt 0:00:18]} Bc2 {[%emt 0:01:45]} 49. Rb6+ {[%emt 0:00:29]} Ke7 {[%emt 0:01:40]} 50. g4 {[%emt 0:04:39]} hxg4 {[%emt 0:00:36]} 51. Kxg4 {[%emt 0:00:14]} 1/2-1/2

[Event "HUN-ch U8-U18 2019"]
[Site "Balatonlelle"]
[Date "2019.06.26"]
[Round "7.19"]
[White "Magold, Filip"]
[Black "Szegedy, Matyas"]
[Result "1-0"]
[ECO "C71"]
[WhiteElo "1906"]
[BlackElo "1806"]
[Annotator "NA RC"]
[PlyCount "119"]
[EventDate "2019.06.21"]
[EventType "swiss"]
[EventCountry "HUN"]
[SourceTitle "playchess.com"]
[Source "ChessBase"]
[SourceQuality "1"]
[TimeControl "40/5400+30:1800+30"]

1. e4 {[%emt 0:00:31]} e5 {[%emt 0:00:06]} 2. Nf3 {[%emt 0:00:16]} Nc6 {[%emt 0:00:07]} 3. Bb5 {[%emt 0:00:14]} a6 {[%emt 0:00:12]} 4. Ba4 {[%emt 0:00:04]} d6 {[%emt 0:00:07]} 5. c4 {[%emt 0:00:20]} Bg4 {[%emt 0:00:13]} 6. h3 {[%emt 0:00:28]} Bxf3 {[%emt 0:00:51]} 7. Qxf3 {[%emt 0:00:13]} Nf6 {[%emt 0:00:37]} 8. Nc3 {[%emt 0:00:20]} Be7 {[%emt 0:01:13]} 9. O-O {[%emt 0:00:52]} O-O {[%emt 0:00:48]} 10. Bxc6 {[%emt 0:00:07]} bxc6 {[%emt 0:00:31]} 11. d3 {[%emt 0:00:36]} Rb8 {[%emt 0:12:47]} 12. b3 {[%emt 0:03:41]} Nd7 {[%emt 0:15:54]} 13. Be3 {[%emt 0:02:20]} Bf6 {[%emt 0:03:19]} 14. Rad1 {[%emt 0:02:14]} c5 {[%emt 0:01:52]} 15. Qg4 {[%emt 0:04:41]} g6 {[%emt 0:10:42]} 16. Ne2 {[%emt 0:05:52]} Bg7 {[%emt 0:05:49]} 17. Bg5 {[%emt 0:07:59]} f6 {[%emt 0:07:19]} 18. Bh4 {[%emt 0:00:52]} Qe8 {[%emt 0:01:21]} 19. Nc3 {[%emt 0:21:00]} c6 {[%emt 0:07:57]} 20. Qe2 {[%emt 0:03:26]} f5 {[%emt 0:02:08]} 21. f3 {[%emt 0:00:26]} f4 {[%emt 0:04:44]} 22. Rb1 {[%emt 0:02:01]} h6 {[%emt 0:01:08]} 23. a3 {[%emt 0:02:40]} g5 {[%emt 0:07:52]} 24. Bf2 {[%emt 0:03:59]} Qg6 {[%emt 0:04:17]} 25. b4 {[%emt 0:01:53]} cxb4 {[%emt 0:00:38]} 26. axb4 {[%emt 0:00:08]} h5 {[%emt 0:01:30]} 27. b5 {[%emt 0:01:33]} axb5 {[%emt 0:00:39]} 28. cxb5 {[%emt 0:00:04]} cxb5 {[%emt 0:00:10]} 29. Rxb5 {[%emt 0:00:10]} Rxb5 {[%emt 0:01:02]} 30. Nxb5 {[%emt 0:00:10]} Rc8 {[%emt 0:01:01]} 31. Qa2+ {[%emt 0:00:49]} Kh7 {[%emt 0:01:57]} 32. Qd5 {[%emt 0:00:40]} Nf8 {[%emt 0:02:03]} 33. Qxd6 Qxd6 {[%emt 0:01:06]} 34. Nxd6 {[%emt 0:07:45]} Rd8 {[%emt 0:00:18]} 35. Nf5 {[%emt 0:01:54]} Rxd3 {[%emt 0:00:38]} 36. Rb1 {[%emt 0:00:08]} Rd7 {[%emt 0:00:36]} 37. Rb6 {[%emt 0:01:17]} Rc7 {[%emt 0:01:37]} 38. Rb8 {[%emt 0:01:14]} Ng6 {[%emt 0:00:54]} 39. Rd8 {[%emt 0:01:05]} Ne7 {[%emt 0:01:08]} 40. Nxe7 {[%emt 0:00:00]} Rxe7 {[%emt 0:00:00]} 41. Rd5 {[%emt 0:05:16]} Kg6 {[%emt 0:01:47]} 42. Bc5 {[%emt 0:00:12]} Re6 {[%emt 0:00:40]} 43. Kf2 {[%emt 0:00:15]} Re8 {[%emt 0:00:34]} 44. Ke2 {[%emt 0:00:21]} Re6 {[%emt 0:00:44]} 45. Kd3 {[%emt 0:00:10]} g4 {[%emt 0:09:04]} 46. hxg4 {[%emt 0:00:37]} hxg4 {[%emt 0:00:07]} 47. Kc4 {[%emt 0:02:28]} Kg5 {[%emt 0:02:26]} 48. Rd7 {[%emt 0:00:33]} Rg6 {[%emt 0:01:58]} 49. Be7+ {[%emt 0:01:17]} Kh6 {[%emt 0:00:38]} 50. Rd6 {[%emt 0:02:02]} gxf3 {[%emt 0:01:42]} 51. gxf3 {[%emt 0:00:09]} Kh5 {[%emt 0:00:51]} 52. Rxg6 Kxg6 53. Kd5 Kh5 {[%emt 0:00:19]} 54. Ke6 {[%emt 0:00:25]} Kg6 {[%emt 0:00:19]} 55. Bd6 {[%emt 0:00:19]} Kh5 {[%emt 0:00:56]} 56. Bxe5 {[%emt 0:00:09]} Bxe5 {[%emt 0:00:04]} 57. Kxe5 {[%emt 0:00:04]} Kg5 {[%emt 0:00:08]} 58. Kd4 {[%emt 0:00:54]} Kh4 {[%emt 0:01:34]} 59. e5 {[%emt 0:00:08]} Kg3 {[%emt 0:00:05]} 60. Ke4 1-0

[Event "HUN-ch U8-U18 2019"]
[Site "Balatonlelle"]
[Date "2019.06.26"]
[Round "7.20"]
[White "Szikszai, Bertalan"]
[Black "Kasnya, Peter"]
[Result "1-0"]
[ECO "B51"]
[WhiteElo "1896"]
[BlackElo "1496"]
[Annotator "NA RC"]
[PlyCount "65"]
[EventDate "2019.06.21"]
[EventType "swiss"]
[EventCountry "HUN"]
[SourceTitle "playchess.com"]
[Source "ChessBase"]
[SourceQuality "1"]
[TimeControl "40/5400+30:1800+30"]

1. e4 {[%emt 0:00:03]} c5 {[%emt 0:00:46]} 2. Nf3 {[%emt 0:00:07]} d6 {[%emt 0:01:32]} 3. Bb5+ {[%emt 0:03:03]} Nd7 {[%emt 0:06:24]} 4. O-O {[%emt 0:03:16]} g6 {[%emt 0:01:43]} 5. d4 {[%emt 0:08:42]} cxd4 {[%emt 0:00:49]} 6. Qxd4 {[%emt 0:00:12]} Ngf6 {[%emt 0:00:17]} 7. Nc3 {[%emt 0:12:00]} Bg7 {[%emt 0:02:38]} 8. Bg5 {[%emt 0:03:00]} O-O {[%emt 0:03:16]} 9. h3 {[%emt 0:03:28]} Nc5 {[%emt 0:01:59]} 10. Qe3 {[%emt 0:02:59]} Bd7 {[%emt 0:01:07]} 11. Bxd7 {[%emt 0:03:36]} Qxd7 {[%emt 0:03:59]} 12. e5 {[%emt 0:01:22]} Ne8 {[%emt 0:02:05]} 13. exd6 {[%emt 0:00:55]} exd6 {[%emt 0:00:37]} 14. Be7 {[%emt 0:02:45]} Nc7 {[%emt 0:03:20]} 15. Bxf8 {[%emt 0:01:34]} Rxf8 {[%emt 0:02:07]} 16. Rad1 {[%emt 0:01:09]} Qc6 {[%emt 0:01:32]} 17. Nd4 {[%emt 0:00:45]} Qb6 {[%emt 0:00:13]} 18. Nb3 {[%emt 0:00:41]} Re8 {[%emt 0:03:07]} 19. Qf3 {[%emt 0:00:59]} Nxb3 {[%emt 0:01:02]} 20. axb3 Ne6 {[%emt 0:00:41]} 21. Nd5 {[%emt 0:01:53]} Qd8 {[%emt 0:02:54]} 22. c3 {[%emt 0:00:50]} Ng5 {[%emt 0:01:14]} 23. Qd3 {[%emt 0:00:36]} Ne4 {[%emt 0:01:30]} 24. Rfe1 {[%emt 0:00:31]} Nc5 {[%emt 0:00:20]} 25. Rxe8+ {[%emt 0:00:16]} Qxe8 {[%emt 0:00:22]} 26. Qc2 {[%emt 0:00:05]} Qe6 {[%emt 0:00:26]} 27. b4 {[%emt 0:00:40]} Nd7 {[%emt 0:00:36]} 28. Qd2 {[%emt 0:00:24]} Bf8 {[%emt 0:00:34]} 29. Re1 {[%emt 0:00:34]} Qf5 {[%emt 0:00:56]} 30. Ne7+ {[%emt 0:01:07]} Bxe7 {[%emt 0:00:25]} 31. Rxe7 {[%emt 0:00:07]} d5 {[%emt 0:01:26]} 32. Qh6 {[%emt 0:00:58]} Nf6 {[%emt 0:01:30]} 33. Rxb7 {[%emt 0:02:05]} 1-0

[Event "HUN-ch U8-U18 2019"]
[Site "Balatonlelle"]
[Date "2019.06.26"]
[Round "7.21"]
[White "Kovacs, Judit"]
[Black "Szabo, Andrea Erzsebet"]
[Result "1-0"]
[ECO "D02"]
[WhiteElo "2025"]
[BlackElo "1582"]
[Annotator "NA RC"]
[PlyCount "61"]
[EventDate "2019.06.21"]
[EventType "swiss"]
[EventCountry "HUN"]
[SourceTitle "playchess.com"]
[Source "ChessBase"]
[SourceQuality "1"]
[TimeControl "40/5400+30:1800+30"]

1. d4 {[%emt 0:00:03]} d5 {[%emt 0:00:06]} 2. Nf3 {[%emt 0:00:05]} Nf6 {[%emt 0:00:05]} 3. c4 {[%emt 0:00:05]} c6 {[%emt 0:00:28]} 4. Qc2 {[%emt 0:00:07]} g6 {[%emt 0:05:03]} 5. Bf4 {[%emt 0:00:11]} Bf5 {[%emt 0:00:59]} 6. Qb3 {[%emt 0:00:14]} Qb6 {[%emt 0:06:07]} 7. Nc3 {[%emt 0:00:16]} Bg7 {[%emt 0:12:38]} 8. e3 {[%emt 0:00:12]} Nbd7 {[%emt 0:06:56]} 9. Be2 {[%emt 0:01:18]} O-O {[%emt 0:08:11]} 10. h3 {[%emt 0:00:27]} Qxb3 {[%emt 0:07:51]} 11. axb3 {[%emt 0:00:08]} Nb6 {[%emt 0:00:59]} 12. Ne5 {[%emt 0:07:12]} Nfd7 {[%emt 0:06:38]} 13. Nxd7 {[%emt 0:05:33]} Bxd7 {[%emt 0:00:19]} 14. c5 {[%emt 0:09:02]} Nc8 {[%emt 0:01:15]} 15. b4 {[%emt 0:01:41]} e6 {[%emt 0:05:14]} 16. b5 {[%emt 0:02:13]} Ne7 {[%emt 0:03:09]} 17. O-O {[%emt 0:02:56]} Rfe8 {[%emt 0:03:58]} 18. b4 {[%emt 0:08:22]} cxb5 {[%emt 0:04:50]} 19. Bxb5 {[%emt 0:01:41]} Nc6 {[%emt 0:00:28]} 20. Bxc6 {[%emt 0:00:26]} bxc6 {[%emt 0:00:16]} 21. Ra6 {[%emt 0:04:42]} Rec8 {[%emt 0:08:00]} 22. Rfa1 {[%emt 0:06:58]} f6 {[%emt 0:00:26]} 23. Na4 {[%emt 0:06:33]} Rf8 {[%emt 0:08:34]} 24. Nb6 {[%emt 0:00:40]} Bc8 {[%emt 0:01:40]} 25. R6a3 {[%emt 0:00:46]} axb6 {[%emt 0:01:43]} 26. Rxa8 {[%emt 0:00:09]} bxc5 {[%emt 0:00:14]} 27. Bd6 {[%emt 0:00:55]} Re8 {[%emt 0:00:19]} 28. bxc5 {[%emt 0:00:25]} e5 {[%emt 0:02:03]} 29. R1a7 {[%emt 0:02:56]} Bf8 {[%emt 0:03:20]} 30. Rb8 {[%emt 0:02:25]} Bxd6 {[%emt 0:01:39]} 31. cxd6 {[%emt 0:00:09]} 1-0

[Event "HUN-ch U8-U18 2019"]
[Site "Balatonlelle"]
[Date "2019.06.26"]
[Round "7.21"]
[White "Turcsanyi, Vince Gergo"]
[Black "Kolimar, Kristof Pal"]
[Result "1/2-1/2"]
[ECO "B40"]
[WhiteElo "1816"]
[BlackElo "1979"]
[Annotator "NA RC"]
[PlyCount "55"]
[EventDate "2019.06.21"]
[EventType "swiss"]
[EventCountry "HUN"]
[SourceTitle "playchess.com"]
[Source "ChessBase"]
[SourceQuality "1"]
[TimeControl "40/5400+30:1800+30"]

1. e4 {[%emt 0:00:03]} c5 {[%emt 0:00:14]} 2. Nf3 {[%emt 0:00:11]} e6 {[%emt 0:00:21]} 3. Nc3 {[%emt 0:00:14]} a6 {[%emt 0:00:34]} 4. g3 {[%emt 0:00:15]} Nc6 {[%emt 0:01:28]} 5. Bg2 {[%emt 0:00:47]} Nf6 {[%emt 0:02:53]} 6. O-O {[%emt 0:01:18]} d5 {[%emt 0:01:11]} 7. exd5 {[%emt 0:01:36]} exd5 {[%emt 0:00:11]} 8. d4 {[%emt 0:00:46]} c4 {[%emt 0:04:19]} 9. Bg5 {[%emt 0:05:39]} Be7 {[%emt 0:03:53]} 10. Ne5 {[%emt 0:03:20]} O-O {[%emt 0:11:07]} 11. Re1 {[%emt 0:06:08]} Be6 {[%emt 0:02:12]} 12. Ne2 {[%emt 0:08:28]} Nd7 {[%emt 0:15:54]} 13. Nxc6 {[%emt 0:07:38]} bxc6 {[%emt 0:00:06]} 14. Bxe7 {[%emt 0:02:04]} Qxe7 {[%emt 0:00:05]} 15. Nf4 {[%emt 0:02:16]} Qd6 {[%emt 0:04:13]} 16. Nxe6 {[%emt 0:07:33]} fxe6 {[%emt 0:00:05]} 17. Bh3 {[%emt 0:01:53]} Rae8 {[%emt 0:06:27]} 18. Qg4 {[%emt 0:04:33]} Rf6 {[%emt 0:03:47]} 19. Re3 {[%emt 0:04:03]} Re7 {[%emt 0:05:57]} 20. Rae1 {[%emt 0:02:11]} e5 {[%emt 0:02:18]} 21. Qe2 {[%emt 0:01:25]} e4 {[%emt 0:00:56]} 22. Bxd7 {[%emt 0:07:08]} Rxd7 {[%emt 0:03:12]} 23. f3 exf3 {[%emt 0:00:40]} 24. Rxf3 {[%emt 0:06:35]} Rxf3 {[%emt 0:04:10]} 25. Qxf3 {[%emt 0:00:21]} Re7 {[%emt 0:03:10]} 26. Rf1 {[%emt 0:00:24]} Qd8 {[%emt 0:01:34]} 27. Qf4 {[%emt 0:06:09]} Qe8 {[%emt 0:02:43]} 28. c3 1/2-1/2

[Event "HUN-ch U8-U18 2019"]
[Site "Balatonlelle"]
[Date "2019.06.26"]
[Round "7.22"]
[White "Bodrogi, Bendeguz"]
[Black "Gergely, Daniel"]
[Result "1/2-1/2"]
[ECO "A06"]
[WhiteElo "1925"]
[BlackElo "1427"]
[Annotator "NA RC"]
[PlyCount "87"]
[EventDate "2019.06.21"]
[EventType "swiss"]
[EventCountry "HUN"]
[SourceTitle "playchess.com"]
[Source "ChessBase"]
[SourceQuality "1"]
[TimeControl "40/5400+30:1800+30"]

1. Nf3 {[%emt 0:00:06]} d5 {[%emt 0:01:04]} 2. c4 {[%emt 0:01:45]} c6 {[%emt 0:00:14]} 3. g3 {[%emt 0:00:34]} Nf6 {[%emt 0:00:42]} 4. Bg2 {[%emt 0:00:41]} Bf5 {[%emt 0:00:48]} 5. O-O {[%emt 0:01:34]} e6 {[%emt 0:00:45]} 6. d4 {[%emt 0:00:31]} Nbd7 {[%emt 0:00:59]} 7. b3 {[%emt 0:11:33]} Ne4 {[%emt 0:04:15]} 8. Nfd2 {[%emt 0:02:51]} Ndf6 {[%emt 0:01:19]} 9. Bb2 {[%emt 0:03:31]} Qa5 {[%emt 0:03:15]} 10. a3 {[%emt 0:03:27]} Qb6 {[%emt 0:02:58]} 11. f3 {[%emt 0:19:52]} Nxd2 {[%emt 0:01:12]} 12. Nxd2 {[%emt 0:00:21]} Bg6 {[%emt 0:05:15]} 13. Kh1 {[%emt 0:11:44]} h5 {[%emt 0:01:34]} 14. e4 {[%emt 0:03:47]} dxe4 {[%emt 0:01:49]} 15. Nxe4 {[%emt 0:02:54]} Bxe4 {[%emt 0:01:07]} 16. fxe4 {[%emt 0:00:13]} Ng4 {[%emt 0:00:58]} 17. Qf3 {[%emt 0:00:31]} Qc7 {[%emt 0:00:53]} 18. e5 {[%emt 0:09:38]} Rd8 {[%emt 0:05:21]} 19. Rad1 {[%emt 0:03:04]} Rd7 {[%emt 0:09:03]} 20. Rfe1 {[%emt 0:08:37]} Qb6 {[%emt 0:04:04]} 21. Bh3 {[%emt 0:03:15]} a5 {[%emt 0:04:14]} 22. Rf1 {[%emt 0:01:24]} a4 {[%emt 0:08:34]} 23. b4 {[%emt 0:00:43]} Qa6 {[%emt 0:01:59]} 24. Rc1 {[%emt 0:02:02]} Qb6 {[%emt 0:02:27]} 25. Bg2 {[%emt 0:04:15]} Qd8 {[%emt 0:04:58]} 26. Rcd1 {[%emt 0:01:29]} c5 {[%emt 0:04:09]} 27. bxc5 {[%emt 0:01:40]} Qc7 {[%emt 0:01:19]} 28. Rb1 {[%emt 0:00:42]} Kd8 {[%emt 0:02:08]} 29. Bc3 {[%emt 0:00:12]} Kc8 {[%emt 0:00:39]} 30. c6 {[%emt 0:00:20]} bxc6 {[%emt 0:00:32]} 31. Qxc6 {[%emt 0:00:07]} Qxc6 {[%emt 0:00:47]} 32. Bxc6 {[%emt 0:00:01]} Rc7 {[%emt 0:00:11]} 33. d5 {[%emt 0:00:24]} exd5 {[%emt 0:00:11]} 34. cxd5 {[%emt 0:00:05]} Ne3 {[%emt 0:00:25]} 35. Rf3 Nc4 {[%emt 0:00:27]} 36. Bd4 {[%emt 0:01:05]} Nd2 37. Rbf1 {[%emt 0:00:15]} Nxf1 {[%emt 0:01:01]} 38. Rxf1 {[%emt 0:00:06]} Rh6 {[%emt 0:02:42]} 39. Rc1 Bxa3 {[%emt 0:02:15]} 40. Ra1 {[%emt 0:00:00]} Rcxc6 {[%emt 0:00:00]} 41. dxc6 {[%emt 0:07:53]} Be7 {[%emt 0:11:40]} 42. Rxa4 {[%emt 0:00:05]} Rxc6 {[%emt 0:00:13]} 43. Ra7 {[%emt 0:02:37]} Rc7 {[%emt 0:00:51]} 44. Ra6 {[%emt 0:00:07]} 1/2-1/2

[Event "HUN-ch U8-U18 2019"]
[Site "Balatonlelle"]
[Date "2019.06.26"]
[Round "7.22"]
[White "Buri, Kata"]
[Black "Karacsonyi, Kata"]
[Result "1/2-1/2"]
[ECO "B88"]
[WhiteElo "1393"]
[BlackElo "1798"]
[Annotator "NA RC"]
[PlyCount "114"]
[EventDate "2019.06.21"]
[EventType "swiss"]
[EventCountry "HUN"]
[SourceTitle "playchess.com"]
[Source "ChessBase"]
[SourceQuality "1"]
[TimeControl "40/5400+30:1800+30"]

1. e4 {[%emt 0:00:03]} c5 {[%emt 0:00:04]} 2. Nf3 {[%emt 0:00:10]} d6 {[%emt 0:00:12]} 3. d4 {[%emt 0:00:24]} cxd4 {[%emt 0:00:06]} 4. Nxd4 {[%emt 0:00:08]} Nf6 {[%emt 0:00:04]} 5. Nc3 {[%emt 0:00:09]} Nc6 {[%emt 0:00:04]} 6. Bc4 {[%emt 0:00:31]} e6 {[%emt 0:00:06]} 7. Bb3 {[%emt 0:00:20]} Be7 {[%emt 0:02:01]} 8. Be3 {[%emt 0:02:19]} a6 {[%emt 0:03:11]} 9. Qe2 {[%emt 0:01:44]} Qc7 {[%emt 0:02:21]} 10. O-O-O {[%emt 0:01:21]} Na5 {[%emt 0:01:07]} 11. g4 {[%emt 0:01:07]} b5 {[%emt 0:01:43]} 12. g5 {[%emt 0:03:57]} Nxb3+ {[%emt 0:09:40]} 13. Nxb3 {[%emt 0:01:43]} Nd7 {[%emt 0:01:00]} 14. f4 {[%emt 0:01:44]} Bb7 {[%emt 0:03:14]} 15. Rhf1 {[%emt 0:01:56]} b4 {[%emt 0:03:26]} 16. Nb1 {[%emt 0:03:58]} Bxe4 {[%emt 0:03:42]} 17. Bd4 {[%emt 0:01:42]} Bd5 {[%emt 0:00:50]} 18. Bxg7 {[%emt 0:02:41]} Rg8 {[%emt 0:01:19]} 19. Rxd5 {[%emt 0:01:32]} exd5 {[%emt 0:05:42]} 20. Bf6 {[%emt 0:00:35]} Nc5 {[%emt 0:04:08]} 21. Nxc5 {[%emt 0:01:23]} dxc5 {[%emt 0:01:53]} 22. Re1 {[%emt 0:01:01]} Ra7 {[%emt 0:00:09]} 23. Bxe7 {[%emt 0:01:05]} Kd7 {[%emt 0:28:36]} 24. Qf3 {[%emt 0:15:12]} Kc6 {[%emt 0:09:57]} 25. Re5 {[%emt 0:06:05]} Qxe5 {[%emt 0:03:56]} 26. fxe5 {[%emt 0:00:15]} Rxe7 {[%emt 0:00:12]} 27. c4 {[%emt 0:01:28]} Rxe5 {[%emt 0:05:45]} 28. Qf6+ {[%emt 0:02:16]} Re6 {[%emt 0:00:13]} 29. cxd5+ {[%emt 0:00:23]} Kxd5 {[%emt 0:00:29]} 30. Qf5+ {[%emt 0:01:37]} Kc6 {[%emt 0:01:55]} 31. Qxf7 {[%emt 0:01:14]} Rge8 {[%emt 0:01:32]} 32. Nd2 {[%emt 0:01:03]} R8e7 {[%emt 0:03:47]} 33. Qf3+ {[%emt 0:01:58]} Kb6 {[%emt 0:01:42]} 34. Nc4+ {[%emt 0:00:52]} Kb5 {[%emt 0:01:19]} 35. Qd3 {[%emt 0:01:08]} Kc6 {[%emt 0:00:51]} 36. Qf3+ {[%emt 0:00:34]} Kb5 {[%emt 0:00:32]} 37. b3 {[%emt 0:00:09]} Re1+ {[%emt 0:00:30]} 38. Kd2 {[%emt 0:00:13]} R1e6 {[%emt 0:00:39]} 39. h4 {[%emt 0:07:59]} a5 {[%emt 0:00:55]} 40. Qd3 {[%emt 0:00:00]} Kc6 {[%emt 0:00:00]} 41. Nxa5+ {[%emt 0:00:31]} Kc7 {[%emt 0:04:31]} 42. Qg3+ {[%emt 0:00:24]} Kc8 {[%emt 0:03:26]} 43. Qf2 {[%emt 0:01:47]} Rd7+ {[%emt 0:04:21]} 44. Kc2 {[%emt 0:00:16]} Rde7 {[%emt 0:03:28]} 45. Qf8+ {[%emt 0:01:30]} Kc7 {[%emt 0:03:28]} 46. Qf4+ {[%emt 0:00:32]} Kc8 {[%emt 0:01:50]} 47. Nc4 {[%emt 0:00:56]} Kb7 {[%emt 0:03:40]} 48. Nd6+ {[%emt 0:02:56]} Kc6 {[%emt 0:01:09]} 49. Nf5 {[%emt 0:00:23]} Rd7 {[%emt 0:01:03]} 50. Qc4 {[%emt 0:01:09]} Re5 {[%emt 0:02:25]} 51. Ng3 {[%emt 0:02:22]} Rd4 {[%emt 0:01:35]} 52. Qa6+ {[%emt 0:00:21]} Kc7 {[%emt 0:00:29]} 53. Qa7+ {[%emt 0:00:09]} Kc6 {[%emt 0:00:41]} 54. Qxh7 {[%emt 0:00:09]} Re3 {[%emt 0:01:04]} 55. Nf1 {[%emt 0:03:42]} Re2+ {[%emt 0:00:41]} 56. Kc1 {[%emt 0:03:07]} Re1+ {[%emt 0:00:07]} 57. Kc2 {[%emt 0:00:06]} Re2+ {[%emt 0:01:45]} 1/2-1/2

[Event "HUN-ch U8-U18 2019"]
[Site "Balatonlelle"]
[Date "2019.06.26"]
[Round "7.23"]
[White "Sulyok, Eszter"]
[Black "Toth, Nikoletta"]
[Result "1/2-1/2"]
[ECO "A12"]
[WhiteElo "1840"]
[BlackElo "2010"]
[Annotator "NA RC"]
[PlyCount "87"]
[EventDate "2019.06.21"]
[EventType "swiss"]
[EventCountry "HUN"]
[SourceTitle "playchess.com"]
[Source "ChessBase"]
[SourceQuality "1"]
[TimeControl "40/5400+30:1800+30"]

1. c4 {[%emt 0:00:18]} c6 {[%emt 0:00:29]} 2. Nf3 {[%emt 0:01:24]} d5 {[%emt 0:00:16]} 3. b3 {[%emt 0:00:08]} Nf6 {[%emt 0:01:15]} 4. g3 {[%emt 0:00:24]} g6 {[%emt 0:01:19]} 5. Bb2 {[%emt 0:00:25]} Bg7 {[%emt 0:00:16]} 6. Bg2 {[%emt 0:03:53]} O-O {[%emt 0:00:07]} 7. O-O {[%emt 0:00:15]} Bf5 {[%emt 0:02:38]} 8. d4 {[%emt 0:03:50]} Ne4 {[%emt 0:11:17]} 9. e3 {[%emt 0:03:27]} Qb6 {[%emt 0:06:26]} 10. Qe2 {[%emt 0:03:46]} a5 {[%emt 0:00:53]} 11. Nc3 {[%emt 0:03:25]} Nxc3 {[%emt 0:13:41]} 12. Bxc3 {[%emt 0:00:25]} a4 {[%emt 0:04:04]} 13. Nd2 {[%emt 0:05:31]} axb3 {[%emt 0:03:14]} 14. axb3 {[%emt 0:00:49]} Rxa1 {[%emt 0:05:22]} 15. Rxa1 {[%emt 0:01:30]} Qd8 {[%emt 0:02:04]} 16. cxd5 {[%emt 0:09:26]} c5 {[%emt 0:01:52]} 17. Qc4 {[%emt 0:08:23]} cxd4 {[%emt 0:03:54]} 18. Bxd4 {[%emt 0:01:06]} Bxd4 {[%emt 0:03:54]} 19. Qxd4 {[%emt 0:00:41]} Na6 {[%emt 0:03:16]} 20. Rc1 {[%emt 0:04:17]} Qa5 {[%emt 0:04:41]} 21. e4 {[%emt 0:11:53]} Bd7 {[%emt 0:00:15]} 22. Nc4 {[%emt 0:01:47]} Qb4 {[%emt 0:01:34]} 23. Qe3 {[%emt 0:00:50]} Nc5 {[%emt 0:08:06]} 24. Nb6 {[%emt 0:06:33]} Qxb6 {[%emt 0:04:37]} 25. Rxc5 {[%emt 0:00:36]} Qa6 {[%emt 0:06:15]} 26. Qc3 {[%emt 0:02:35]} Qa2 {[%emt 0:04:46]} 27. h3 {[%emt 0:08:31]} Ra8 {[%emt 0:01:40]} 28. Rc7 {[%emt 0:02:51]} Qb1+ {[%emt 0:03:51]} 29. Kh2 {[%emt 0:00:54]} Ra1 {[%emt 0:00:55]} 30. g4 {[%emt 0:00:24]} Qg1+ {[%emt 0:01:00]} 31. Kg3 {[%emt 0:00:04]} Ra2 {[%emt 0:00:14]} 32. Qf3 {[%emt 0:00:33]} Be8 {[%emt 0:00:33]} 33. Rxe7 {[%emt 0:00:11]} Kf8 {[%emt 0:00:15]} 34. Rxb7 {[%emt 0:00:27]} Qa1 {[%emt 0:01:10]} 35. Rc7 {[%emt 0:01:44]} g5 {[%emt 0:00:28]} 36. Rc3 {[%emt 0:01:17]} Rc2 {[%emt 0:00:31]} 37. Qf5 {[%emt 0:02:13]} Qxc3+ {[%emt 0:00:20]} 38. Kh2 {[%emt 0:00:24]} Qc7+ {[%emt 0:00:23]} 39. e5 {[%emt 0:00:21]} Qc5 {[%emt 0:00:53]} 40. Qxh7 {[%emt 0:00:00]} Qxf2 {[%emt 0:00:00]} 41. Qh6+ {[%emt 0:02:00]} Kg8 {[%emt 0:00:57]} 42. Qxg5+ {[%emt 0:00:10]} Kf8 {[%emt 0:00:15]} 43. Qh6+ {[%emt 0:00:04]} Kg8 {[%emt 0:00:05]} 44. Qg5+ {[%emt 0:00:05]} 1/2-1/2